bitfinex/quotes_BTCUSD_20260127
["timestamp","ask_amount","ask_price","bid_price","bid_amount"]
[1769504993576,0.0230578,88065.0,88047.0,0.18063558]
[1769504993797,0.21931774,88064.0,88031.0,0.25773046]
[1769504994011,0.00090761,88068.0,88033.0,0.23058558]
[1769504994012,0.21931774,88060.0,88033.0,0.23058558]
[1769504994225,0.00090761,88068.0,88031.0,0.02714488]
[1769504994226,0.02381587,88058.0,88036.0,0.0242961]
[1769504994461,0.02381587,88058.0,88040.0,0.0242961]
[1769504994662,0.02381587,88058.0,88032.0,0.14392]
[1769504994663,0.02381587,88058.0,88043.0,0.24596625]
[1769504995487,0.02399807,88058.0,88043.0,0.24596625]
[1769504996579,0.02399807,88058.0,88044.0,0.14392]
[1769504997421,0.02399807,88058.0,88044.0,0.38988625]
[1769505000224,0.02399807,88058.0,88044.0,0.27324625]
[1769505000425,0.02399807,88058.0,88045.0,0.11668]
[1769505001055,0.28800325,88057.0,88044.0,0.02728]
[1769505001281,0.02381587,88055.0,88045.0,0.11668]
[1769505002289,0.02381587,88055.0,88031.0,0.02714488]
[1769505002498,0.02399807,88055.0,88035.0,0.01848522]
[1769505002725,0.02399807,88055.0,88037.0,0.01848522]
[1769505002892,0.02399807,88055.0,88038.0,0.24596625]
[1769505003096,0.05236183,88055.0,88038.0,0.24596625]
[1769505003431,0.01208027,88068.0,88048.0,0.01848522]
[1769505003432,0.02454128,88068.0,88048.0,0.01848522]
[1769505003637,0.02454128,88068.0,88049.0,0.26445147]
[1769505003911,0.02443128,88068.0,88049.0,0.26445147]
[1769505004382,0.02381587,88067.0,88049.0,0.24596625]
[1769505005252,0.02840708,88066.0,88049.0,0.24596625]
[1769505005461,0.02381587,88065.0,88049.0,0.24596625]
[1769505008218,0.00061541,88068.0,88045.0,0.0499036]
[1769505008219,0.00061541,88068.0,88050.0,0.01398727]
[1769505008421,0.00061541,88068.0,88051.0,0.24596625]
[1769505008990,0.02443128,88068.0,88051.0,0.24596625]
[1769505010547,0.00061541,88068.0,88051.0,0.24596625]
[1769505010749,0.00061541,88068.0,88053.0,0.24596625]
[1769505011606,0.02536854,88068.0,88053.0,0.24596625]
[1769505012445,0.00061541,88068.0,88053.0,0.24596625]
[1769505012652,0.25963949,88079.0,88050.0,0.24596625]
[1769505012815,0.03374885,88076.0,88052.0,0.24596625]
[1769505013577,0.03374885,88074.0,88052.0,0.24596625]
[1769505013793,0.03374885,88072.0,88052.0,0.24596625]
[1769505014008,0.03374885,88072.0,88051.0,0.24596625]
[1769505014904,0.03374885,88072.0,88050.0,0.00046721]
[1769505014905,0.06811881,88082.0,88050.0,0.00046721]
[1769505014906,0.03374885,88092.0,88072.0,0.00018665]
[1769505015118,0.25963949,88091.0,88073.0,0.38992625]
[1769505015333,0.33789508,88100.0,88073.0,0.38992625]
[1769505015334,0.25963949,88090.0,88073.0,0.38992625]
[1769505015549,0.04049582,88089.0,88073.0,0.38992625]
[1769505015971,0.04049582,88088.0,88073.0,0.38992625]
[1769505017041,0.04049582,88088.0,88074.0,0.24596625]
[1769505019181,0.33789508,88110.0,88073.0,0.14396]
[1769505019183,0.13137186,88145.0,88100.0,0.1]
[1769505019392,0.22560312,88163.0,88088.0,0.00018665]
[1769505019393,0.33789508,88140.0,88122.0,0.0499036]
[1769505019604,0.02381587,88126.0,88109.0,0.0499036]
[1769505019819,0.02381587,88126.0,88118.0,0.02728]
[1769505019820,0.02381587,88125.0,88118.0,0.02728]
[1769505020036,0.02381587,88125.0,88121.0,0.05673994]
[1769505020249,0.02381587,88125.0,88121.0,0.01180652]
[1769505020466,0.02381587,88125.0,88121.0,0.00014013]
[1769505020676,0.02381587,88125.0,88118.0,0.03862841]
[1769505020883,0.02381587,88125.0,88118.0,0.11675421]
[1769505021086,0.02381587,88125.0,88119.0,0.01134829]
[1769505021503,0.02381587,88125.0,88120.0,0.01134816]
[1769505021725,0.02381587,88125.0,88118.0,0.11656083]
[1769505021923,0.02381587,88125.0,88119.0,0.01134829]
[1769505022134,0.02381587,88125.0,88118.0,0.00292933]
[1769505022379,0.02381587,88125.0,88117.0,0.05674214]
[1769505022600,0.0002268,88148.0,88127.0,0.01134726]
[1769505022601,0.02490463,88134.0,88127.0,0.01134726]
[1769505022832,0.0002268,88148.0,88134.0,0.01134635]
[1769505022833,0.28078833,88142.0,88134.0,0.01134635]
[1769505023059,0.0002268,88148.0,88134.0,0.01134635]
[1769505023060,0.02490463,88147.0,88134.0,0.01134635]
[1769505023269,0.02490463,88147.0,88130.0,0.01047842]
[1769505023473,0.02490463,88147.0,88130.0,0.05673387]
[1769505023689,0.02490463,88146.0,88132.0,0.01134661]
[1769505023895,0.02490463,88146.0,88131.0,0.01134674]
[1769505024318,0.02490463,88146.0,88130.0,0.26785747]
[1769505024522,0.28561631,88145.0,88131.0,0.11256489]
[1769505024732,0.02371648,88144.0,88132.0,0.11256489]
[1769505024949,0.02371648,88144.0,88133.0,0.11256489]
[1769505025160,0.02371648,88144.0,88125.0,0.28482202]
[1769505025161,0.02371648,88144.0,88134.0,0.11256489]
[1769505025365,0.0002268,88148.0,88121.0,0.11664]
[1769505025366,0.21213279,88131.0,88121.0,0.11664]
[1769505025589,0.02371648,88130.0,88121.0,0.09390157]
[1769505025800,0.02371648,88130.0,88121.0,0.07115202]
[1769505026003,0.02371648,88130.0,88121.0,0.04841048]
[1769505026274,0.02371648,88130.0,88121.0,0.02566895]
[1769505026478,0.02371648,88130.0,88118.0,0.03016257]
[1769505026684,0.02371648,88130.0,88115.0,0.11271262]
[1769505026907,0.02371648,88130.0,88118.0,0.01134841]
[1769505027121,0.02371648,88130.0,88116.0,0.05668628]
[1769505027320,0.02371648,88130.0,88119.0,0.01134829]
[1769505027536,0.02371648,88130.0,88118.0,0.01134841]
[1769505027954,0.04008852,88130.0,88116.0,0.05668628]
[1769505028170,0.04008852,88130.0,88117.0,0.0680909]
[1769505028381,0.02371648,88130.0,88118.0,0.01134841]
[1769505028595,0.02371648,88128.0,88122.0,0.0113479]
[1769505029018,0.02371648,88134.0,88124.0,0.01134764]
[1769505029226,0.02371648,88134.0,88125.0,0.01134751]
[1769505029660,0.02371648,88134.0,88123.0,0.06804059]
[1769505029875,0.02371648,88134.0,88124.0,0.05673816]
[1769505030102,0.02371648,88134.0,88122.0,0.0113479]
[1769505030517,0.02371648,88134.0,88123.0,0.01134777]
[1769505030731,0.02371648,88134.0,88121.0,0.03390829]
[1769505030951,0.02371648,88134.0,88122.0,0.04534594]
[1769505031165,0.02371648,88134.0,88122.0,0.02285456]
[1769505031390,0.02371648,88134.0,88123.0,0.01134777]
[1769505031596,0.02371648,88134.0,88122.0,0.0113479]
[1769505032255,0.0002268,88148.0,85750.0,0.005]
[1769505032256,0.31654959,88133.0,88110.0,0.01134944]
[1769505032467,0.02371648,88130.0,88115.0,0.01139552]
[1769505032718,0.02371648,88126.0,88115.0,0.0113488]
[1769505032903,0.02371648,88125.0,88115.0,0.0113488]
[1769505033153,0.02371648,88125.0,88116.0,0.01134867]
[1769505034334,0.02371648,88125.0,88117.0,0.01134854]
[1769505034553,0.0004,88157.0,88125.0,0.00018665]
[1769505034760,0.0004,88157.0,88143.0,0.0113452]
[1769505034968,0.0004,88157.0,88141.0,0.30851237]
[1769505034969,0.0004,88157.0,88147.0,0.01134468]
[1769505035171,0.0004,88157.0,88148.0,0.01134455]
[1769505035384,0.0004,88157.0,88130.0,0.01134687]
[1769505035385,0.28561631,88154.0,88130.0,0.01134687]
[1769505035604,0.02371648,88149.0,88127.0,0.05673627]
[1769505035853,0.28561631,88146.0,88129.0,0.011347]
[1769505036098,0.07080144,88153.0,88129.0,0.011347]
[1769505036099,0.02371648,88143.0,88130.0,0.01134687]
[1769505036299,0.28561631,88140.0,88131.0,0.01134674]
[1769505036506,0.30933279,88140.0,88130.0,0.01134687]
[1769505036705,0.30933279,88140.0,88131.0,0.01134674]
[1769505037376,0.30933279,88140.0,88132.0,0.11241036]
[1769505037526,0.30933279,88140.0,88133.0,0.11241036]
[1769505037763,0.30933279,88140.0,88134.0,0.11241036]
[1769505037963,0.02270094,88139.0,88135.0,0.11241036]
[1769505038172,0.28561631,88138.0,88136.0,0.11241036]
[1769505038482,0.28561631,88138.0,88137.0,0.11241036]
[1769505038904,0.28561631,88138.0,88137.0,0.10955886]
[1769505039086,0.28561631,88144.0,88137.0,0.08682145]
[1769505039296,0.28561631,88144.0,88129.0,0.011347]
[1769505039467,0.28561631,88144.0,88125.0,0.03503992]
[1769505039468,0.28561631,88142.0,88125.0,0.03503992]
[1769505039669,0.02371648,88139.0,88123.0,0.25073517]
[1769505039872,0.02371648,88139.0,88118.0,0.02369241]
[1769505039873,0.30933279,88136.0,88118.0,0.02364836]
[1769505040270,0.30933279,88136.0,88123.0,0.04982387]
[1769505040476,0.30933279,88136.0,88126.0,0.01134738]
[1769505041226,0.30933279,88136.0,88124.0,0.01134764]
[1769505041435,0.30933279,88136.0,88119.0,0.01134829]
[1769505041436,0.00014028,88149.0,88136.0,0.00018665]
[1769505041673,0.02332,88148.0,88142.0,0.01134532]
[1769505041875,0.02332,88148.0,88144.0,0.01134507]
[1769505042084,0.04450712,88158.0,88144.0,0.01134507]
[1769505042085,0.1166,88147.0,88145.0,0.01134494]
[1769505042289,0.33012343,88158.0,88144.0,0.00687078]
[1769505042290,0.14384,88146.0,88144.0,0.00682455]
[1769505042523,0.1166,88146.0,88145.0,0.01230183]
[1769505042748,0.1166,88146.0,88139.0,0.33020276]
[1769505042749,0.1166,88146.0,88140.0,0.01134558]
[1769505042953,0.30288343,88158.0,88142.0,0.01134532]
[1769505043154,0.14384,88156.0,88141.0,0.27126084]
[1769505043307,0.16755648,88156.0,88141.0,0.27126084]
[1769505043517,0.16755648,88156.0,88140.0,0.00014028]
[1769505043518,0.30933279,88155.0,88140.0,0.00014028]
[1769505043726,0.14384,88154.0,88140.0,0.29716692]
[1769505043928,0.02371648,88153.0,88138.0,0.01134584]
[1769505044224,0.02385671,88153.0,88136.0,0.03393675]
[1769505044435,0.02385671,88153.0,88134.0,0.46605944]
[1769505044436,0.28561631,88152.0,88134.0,0.25073711]
[1769505044689,0.02371648,88152.0,88132.0,0.27347451]
[1769505044916,0.02371648,88152.0,88133.0,0.05673226]
[1769505045143,0.02371648,88152.0,88134.0,0.05673162]
[1769505045395,0.02371648,88152.0,88136.0,0.0113461]
[1769505045617,0.16751648,88151.0,88135.0,0.00806729]
[1769505045852,0.16751648,88151.0,88136.0,0.03399216]
[1769505046050,0.16751648,88151.0,88137.0,0.01134597]
[1769505046491,0.11656,88150.0,88136.0,0.04533826]
[1769505046698,0.11656,88150.0,88135.0,0.33016008]
[1769505046908,0.11656,88150.0,88135.0,0.25069139]
[1769505047117,0.11656,88150.0,88135.0,0.22795347]
[1769505047316,0.11656,88150.0,88135.0,0.20521556]
[1769505047523,0.11656,88150.0,88135.0,0.18247764]
[1769505047930,0.11656,88150.0,88135.0,0.15973972]
[1769505048141,0.11656,88150.0,88135.0,0.1937324]
[1769505048349,0.11656,88150.0,88135.0,0.18234086]
[1769505048574,0.11656,88150.0,88135.0,0.15960295]
[1769505048775,0.11656,88150.0,88136.0,0.0113461]
[1769505049183,0.11656,88150.0,88137.0,0.01134597]
[1769505049389,0.11656,88150.0,88135.0,0.0687422]
[1769505049390,0.11656,88150.0,88135.0,0.11408146]
[1769505049577,0.11656,88149.0,88142.0,0.27347451]
[1769505050368,0.00014023,88153.0,88142.0,0.27347451]
[1769505050579,0.00014023,88153.0,88134.0,0.16969753]
[1769505050580,0.00014023,88153.0,88135.0,0.2264284]
[1769505050787,0.11656,88152.0,88136.0,0.03503851]
[1769505050983,0.11656,88152.0,88137.0,0.02369241]
[1769505051225,0.11656,88152.0,88139.0,0.02369241]
[1769505051345,0.11656,88152.0,88140.0,0.11334847]
[1769505051547,0.11656,88152.0,88141.0,0.11334847]
[1769505051809,0.11656,88152.0,88142.0,0.11334847]
[1769505052005,0.11656,88152.0,88143.0,0.11334847]
[1769505052278,0.11656,88152.0,88144.0,0.11334847]
[1769505052479,0.28561631,88151.0,88145.0,0.11334847]
[1769505052680,0.28561631,88151.0,88132.0,0.02369241]
[1769505052903,0.28561631,88151.0,88134.0,0.29716692]
[1769505053089,0.28561631,88151.0,88135.0,0.27347451]
[1769505053298,0.28561631,88151.0,88136.0,0.02369241]
[1769505053949,0.14027648,88152.0,88136.0,0.02369241]
[1769505054780,0.14027648,88152.0,88137.0,0.35483425]
[1769505054986,0.11656,88152.0,88137.0,0.37746343]
[1769505056491,0.11656,88152.0,88138.0,0.02262918]
[1769505056739,0.11656,88152.0,88139.0,0.02262918]
[1769505057143,0.11656,88152.0,88140.0,0.02262918]
[1769505057732,0.1438,88151.0,88140.0,0.02262918]
[1769505057949,0.1438,88151.0,88141.0,0.37746343]
[1769505058168,0.00014023,88153.0,88141.0,0.37746343]
[1769505058169,0.1438,88150.0,88141.0,0.37746343]
[1769505058352,0.1438,88150.0,88141.0,0.35471569]
[1769505058556,0.1438,88150.0,88141.0,0.33197932]
[1769505058758,0.1438,88150.0,88141.0,0.02262918]
[1769505058963,0.1438,88150.0,88135.0,0.35472706]
[1769505059123,0.1438,88149.0,88135.0,0.33199069]
[1769505059324,0.1438,88149.0,88135.0,0.30925277]
[1769505059530,0.1438,88149.0,88135.0,0.28651486]
[1769505059732,0.1438,88149.0,88135.0,0.26819946]
[1769505060148,0.1438,88149.0,88135.0,0.29082864]
[1769505060581,0.1438,88149.0,88124.0,0.21960113]
[1769505060781,0.36126604,88148.0,88129.0,0.02262918]
[1769505061048,0.36126604,88148.0,88130.0,0.35483425]
[1769505061203,0.02453772,88147.0,88130.0,0.35483425]
[1769505065135,0.02453772,88147.0,88130.0,0.37746343]
[1769505065560,0.00014023,88153.0,88134.0,0.02262918]
[1769505065759,0.02724,88152.0,88135.0,0.02262918]
[1769505065911,0.1438,88152.0,88137.0,0.02262918]
[1769505066117,0.1438,88152.0,88131.0,0.35483425]
[1769505066339,0.36126604,88149.0,88131.0,0.35483425]
[1769505066557,0.02453772,88147.0,88131.0,0.35483425]
[1769505067341,0.36126604,88146.0,88131.0,0.35483425]
[1769505067939,0.1438,88152.0,88124.0,0.16969753]
[1769505067940,0.42199806,88141.0,88124.0,0.16969753]
[1769505068170,0.42199806,88141.0,88111.0,0.11799898]
[1769505068171,0.37126604,88131.0,88114.0,0.03869958]
[1769505068375,0.11656,88130.0,88111.0,0.40462627]
[1769505068796,0.11656,88130.0,88112.0,0.35538415]
[1769505068999,0.11656,88130.0,88112.0,0.35483425]
[1769505069205,0.06656,88130.0,88114.0,0.35483425]
[1769505069623,0.36126604,88129.0,88112.0,0.02262918]
[1769505070184,0.36126604,88129.0,88112.0,0.37746343]
[1769505070388,0.02453772,88126.0,88106.0,0.40462368]
[1769505070603,0.36126604,88124.0,88106.0,0.38187981]
[1769505070807,0.02453772,88123.0,88106.0,0.35483425]
[1769505071024,0.36126604,88124.0,88106.0,0.33208883]
[1769505071025,0.05177772,88122.0,88106.0,0.33208883]
[1769505071261,0.05177772,88122.0,88106.0,0.30934341]
[1769505071490,0.05177772,88122.0,88106.0,0.35483425]
[1769505071766,0.02738015,88122.0,88108.0,0.37746343]
[1769505071983,0.1438,88121.0,88108.0,0.37746343]
[1769505072433,0.00014015,88122.0,88108.0,0.37523718]
[1769505072434,0.1438,88120.0,88108.0,0.37523718]
[1769505073048,0.1438,88119.0,88108.0,0.37523718]
[1769505074312,0.02453772,88118.0,88101.0,0.35483425]
[1769505074519,0.02453772,88118.0,88101.0,0.33208935]
[1769505074726,0.02453772,88118.0,88098.0,0.0003328]
[1769505074727,0.36126604,88115.0,88098.0,0.0003328]
[1769505074939,0.02453772,88113.0,88094.0,0.38689492]
[1769505075143,0.02453772,88113.0,88094.0,0.36414821]
[1769505075144,0.36126604,88113.0,88094.0,0.36414821]
[1769505075356,0.1438,88119.0,88094.0,0.35483425]
[1769505075357,0.02453772,88111.0,88094.0,0.35483425]
[1769505075582,0.02453772,88110.0,88094.0,0.35483425]
[1769505076656,0.02453772,88108.0,88092.0,0.0001103]
[1769505076876,0.42199806,88110.0,88092.0,0.0001103]
[1769505076877,0.36126604,88105.0,88092.0,0.0001103]
[1769505077076,0.38580376,88103.0,88092.0,0.0001103]
[1769505077936,0.36126604,88101.0,88092.0,0.0001103]
[1769505078143,0.02453772,88098.0,88092.0,0.0001103]
[1769505078368,0.47786604,88097.0,88080.0,0.01135331]
[1769505078596,0.02453772,88096.0,88081.0,0.01135318]
[1769505078827,0.02453772,88096.0,88082.0,0.01135305]
[1769505079052,0.47786604,88097.0,88083.0,0.01135292]
[1769505079522,0.14384,88096.0,88083.0,0.36618717]
[1769505080127,0.14384,88096.0,88083.0,0.35483425]
[1769505080339,0.14384,88096.0,88083.0,0.36618717]
[1769505080971,0.14384,88096.0,88084.0,0.01135279]
[1769505081578,0.14384,88096.0,88083.0,0.35483425]
[1769505081989,0.14384,88096.0,88083.0,0.35369669]
[1769505082191,0.14384,88096.0,88081.0,0.02262918]
[1769505082192,0.19680438,88096.0,88081.0,0.02262918]
[1769505082584,0.14384,88096.0,88081.0,0.02262918]
[1769505083599,0.14384,88096.0,88082.0,0.02430263]
[1769505087068,0.14384,88096.0,88083.0,0.02453739]
[1769505087913,0.14384,88096.0,88083.0,0.03589031]
[1769505088128,0.14384,88096.0,88085.0,0.02453739]
[1769505088333,0.14384,88096.0,88085.0,0.03589006]
[1769505088998,0.14384,88096.0,88085.0,0.02453739]
[1769505089840,0.14384,88096.0,88086.0,0.02453739]
[1769505091778,0.14384,88096.0,88086.0,0.02402548]
[1769505091979,0.14384,88096.0,88081.0,0.37215585]
[1769505092182,0.14384,88096.0,88076.0,0.01135383]
[1769505092183,0.37464885,88095.0,88074.0,0.37934649]
[1769505092543,0.37464885,88095.0,88075.0,0.00178553]
[1769505092544,0.37464885,88093.0,88075.0,0.00178553]
[1769505092763,0.02250198,88090.0,88069.0,0.37011843]
[1769505092982,0.37464885,88088.0,88069.0,0.34736396]
[1769505093217,0.37464885,88088.0,88069.0,0.32459761]
[1769505093432,0.37478893,88088.0,88070.0,0.02453739]
[1769505093649,0.03747889,88087.0,88070.0,0.02453739]
[1769505093871,0.38962576,88087.0,88070.0,0.02453739]
[1769505094097,0.38962576,88087.0,88064.0,0.01135537]
[1769505094300,0.02250198,88084.0,88067.0,0.01135499]
[1769505094510,0.02250198,88084.0,88067.0,0.3925298]
[1769505094704,0.14384,88083.0,88068.0,0.40388466]
[1769505095144,0.14384,88083.0,88071.0,0.01135447]
[1769505095369,0.14384,88083.0,88073.0,0.01135421]
[1769505095802,0.14384,88083.0,88072.0,0.01135434]
[1769505096766,0.14384,88083.0,88070.0,0.0113546]
[1769505096976,0.14384,88083.0,88073.0,0.01135421]
[1769505097171,0.14384,88083.0,88071.0,0.0681268]
[1769505097172,0.02250198,88102.0,88082.0,0.05676499]
[1769505097325,0.05673522,88129.0,88069.0,0.05447458]
[1769505097326,0.14392,88101.0,88087.0,0.40388221]
[1769505097520,0.14392,88101.0,88087.0,0.39266988]
[1769505097900,0.14392,88101.0,88087.0,0.02467747]
[1769505098135,0.35214687,88100.0,88087.0,0.00014008]
[1769505098542,0.35214687,88098.0,88087.0,0.00014008]
[1769505098944,0.02250198,88095.0,88075.0,0.02453739]
[1769505099174,0.35214687,88092.0,88075.0,0.02453739]
[1769505099381,0.37464885,88092.0,88075.0,0.02453739]
[1769505099584,0.35214687,88090.0,88069.0,0.03589212]
[1769505099729,0.37464885,88090.0,88072.0,0.01135434]
[1769505099927,0.37464885,88090.0,88073.0,0.01135421]
[1769505100125,0.37464885,88090.0,88073.0,0.3925298]
[1769505100455,0.37464885,88090.0,88074.0,0.02453739]
[1769505101811,0.37464885,88090.0,88074.0,0.03589147]
[1769505101962,0.37464885,88090.0,88074.0,0.02453739]
[1769505102219,0.37464885,88090.0,88074.0,0.03589147]
[1769505102636,0.37464885,88090.0,88074.0,0.40388388]
[1769505102997,0.35214687,88090.0,88074.0,0.3925298]
[1769505103178,0.35214687,88090.0,88075.0,0.02453739]
[1769505104770,0.02264224,88095.0,88077.0,0.0113537]
[1769505104976,0.02264224,88095.0,88079.0,0.02453739]
[1769505105180,0.00014026,88095.0,88080.0,0.02453739]
[1769505105348,0.11664,88094.0,88081.0,0.01135318]
[1769505105536,0.14392,88094.0,88079.0,0.36799241]
[1769505105737,0.14392,88094.0,88077.0,0.0113537]
[1769505105738,0.14392,88093.0,88082.0,0.01135305]
[1769505106039,0.14392,88093.0,88082.0,0.34524068]
[1769505106260,0.14392,88093.0,88082.0,0.32248895]
[1769505106465,0.14392,88093.0,88082.0,0.29973735]
[1769505106671,0.14392,88093.0,88082.0,0.27698574]
[1769505106883,0.14392,88093.0,88082.0,0.25423414]
[1769505107129,0.14392,88093.0,88082.0,0.23147117]
[1769505107333,0.14392,88093.0,88082.0,0.21778608]
[1769505107448,0.14392,88093.0,88077.0,0.37934611]
[1769505107852,0.14392,88093.0,88078.0,0.01135357]
[1769505108097,0.14392,88093.0,88076.0,0.01295564]
[1769505108303,0.14392,88093.0,88077.0,0.36799241]
[1769505109079,0.16642198,88093.0,88077.0,0.36799241]
[1769505109490,0.16642198,88093.0,88077.0,0.37934611]
[1769505109697,0.16642198,88093.0,88077.0,0.36799241]
[1769505109930,0.02250198,88093.0,88077.0,0.36799241]
[1769505110131,0.14392,88092.0,88078.0,0.37934598]
[1769505110333,0.14392,88092.0,88078.0,0.36799241]
[1769505110950,0.14392,88092.0,88078.0,0.37934598]
[1769505111690,0.14392,88092.0,88079.0,0.37934585]
[1769505111889,0.14392,88092.0,88079.0,0.36799241]
[1769505113827,0.16918932,88092.0,88075.0,0.36799241]
[1769505114030,0.16918932,88092.0,88075.0,0.37934636]
[1769505114384,0.16918932,88092.0,88076.0,0.36670043]
[1769505114736,0.02526932,88091.0,88071.0,0.01135447]
[1769505114937,0.02526932,88089.0,88072.0,0.01135434]
[1769505115140,0.02526932,88089.0,88071.0,0.3780549]
[1769505115365,0.02439484,88089.0,88071.0,0.01135447]
[1769505115569,0.02439484,88089.0,88071.0,0.36670043]
[1769505115720,0.02439484,88089.0,88071.0,0.3780549]
[1769505115956,0.02439484,88089.0,88073.0,0.37805464]
[1769505116822,0.02439484,88089.0,88073.0,0.36670043]
[1769505117319,0.02439484,88089.0,88072.0,0.01135434]
[1769505117525,0.02439484,88089.0,88074.0,0.36670043]
[1769505118157,0.02439484,88089.0,88074.0,0.37805451]
[1769505118366,0.02439484,88089.0,88075.0,0.36670043]
[1769505118789,0.02728,88088.0,88075.0,0.36670043]
[1769505119398,0.02728,88088.0,88075.0,0.37805438]
[1769505120014,0.02728,88088.0,88075.0,0.36670043]
[1769505120207,0.02728,88088.0,88075.0,0.37805438]
[1769505120497,0.02728,88088.0,88077.0,0.0113537]
[1769505120711,0.02728,88088.0,88076.0,0.01135383]
[1769505121167,0.00014026,88095.0,88076.0,0.01135383]
[1769505121168,0.03171949,88095.0,88079.0,0.36670043]
[1769505121385,0.14392,88087.0,88079.0,0.36670043]
[1769505121813,0.14392,88087.0,88079.0,0.37805387]
[1769505122469,0.14392,88087.0,88079.0,0.36670043]
[1769505123084,0.14392,88087.0,88079.0,0.37805387]
[1769505123921,0.14392,88087.0,88079.0,0.36670043]
[1769505124553,0.14392,88087.0,88079.0,0.37805387]
[1769505124764,0.14392,88087.0,88079.0,0.36670043]
[1769505125388,0.11664,88086.0,88079.0,0.37805387]
[1769505125693,0.11664,88086.0,88080.0,0.01135331]
[1769505126293,0.03171949,88095.0,88083.0,0.36670043]
[1769505126523,0.14835949,88095.0,88083.0,0.36670043]
[1769505126852,0.14835949,88095.0,88083.0,0.01135292]
[1769505127070,0.14835949,88095.0,88084.0,0.01135279]
[1769505127487,0.14835949,88095.0,88085.0,0.01135267]
[1769505127697,0.14835949,88095.0,88083.0,0.01135292]
[1769505127890,0.14835949,88095.0,88084.0,0.01135279]
[1769505128284,0.11664,88094.0,88082.0,0.01135305]
[1769505128502,0.11664,88094.0,88084.0,0.01135279]
[1769505128708,0.11664,88094.0,88083.0,0.01135292]
[1769505129492,0.11664,88094.0,88084.0,0.01135279]
[1769505129707,0.03171949,88095.0,88083.0,0.01135292]
[1769505129893,0.11664,88094.0,88085.0,0.01135267]
[1769505130208,0.11664,88094.0,88084.0,0.37805322]
[1769505130362,0.11664,88094.0,88085.0,0.01135267]
[1769505131939,0.11664,88094.0,88084.0,0.01135279]
[1769505132076,0.11664,88094.0,88085.0,0.01135267]
[1769505132953,0.33798866,88120.0,88087.0,0.01135241]
[1769505133151,0.14682049,88135.0,88070.0,0.05447458]
[1769505133152,0.04057619,88109.0,88093.0,0.36670043]
[1769505133496,0.04057619,88109.0,88096.0,0.01135125]
[1769505133701,0.04057619,88109.0,88097.0,0.36670043]
[1769505134137,0.04057619,88109.0,88098.0,0.01135099]
[1769505134355,0.36662849,88117.0,88098.0,0.01135099]
[1769505134356,0.15721619,88115.0,88100.0,0.01135073]
[1769505134588,0.15721619,88115.0,88099.0,0.36670043]
[1769505135261,0.15721619,88115.0,88099.0,0.37805129]
[1769505136097,0.15721619,88115.0,88100.0,0.36670043]
[1769505137925,0.15746279,88115.0,88100.0,0.36670043]
[1769505139319,0.04082279,88115.0,88100.0,0.36670043]
[1769505141229,0.04082279,88115.0,88100.0,0.37805116]
[1769505141654,0.04082279,88115.0,88102.0,0.01135048]
[1769505141818,0.04082279,88115.0,88101.0,0.41355791]
[1769505142019,0.04082279,88115.0,88101.0,0.0113506]
[1769505142247,0.04082279,88115.0,88104.0,0.01135022]
[1769505142578,0.0002466,88115.0,88105.0,0.01135009]
[1769505143091,0.0002466,88115.0,88104.0,0.0681009]
[1769505143092,0.0002466,88115.0,88104.0,0.41355753]
[1769505143718,0.0002466,88115.0,88104.0,0.40220731]
[1769505146323,0.0002466,88115.0,88105.0,0.01135009]
[1769505146532,0.0002466,88115.0,88106.0,0.01134996]
[1769505147213,0.0002466,88115.0,88107.0,0.01134983]
[1769505147846,0.0002466,88115.0,88105.0,0.01135009]
[1769505148055,0.0002466,88115.0,88104.0,0.40220731]
[1769505148474,0.07006089,88115.0,88101.0,0.0113506]
[1769505149064,0.07006089,88115.0,88102.0,0.01135048]
[1769505149296,0.07006089,88115.0,88099.0,0.01135086]
[1769505149501,0.07006089,88115.0,88100.0,0.41085495]
[1769505149684,0.07006089,88115.0,88100.0,0.39950422]
[1769505149918,0.07006089,88115.0,88100.0,0.41085495]
[1769505150121,0.07006089,88115.0,88101.0,0.0113506]
[1769505150532,0.07006089,88115.0,88100.0,0.41085495]
[1769505150818,0.07006089,88115.0,88100.0,0.39950422]
[1769505151031,0.07006089,88115.0,88100.0,0.41085495]
[1769505151713,0.07006089,88115.0,88100.0,0.39950422]
[1769505152534,0.0002466,88115.0,88102.0,0.4108547]
[1769505152753,0.0002466,88115.0,88102.0,0.39950422]
[1769505152935,0.0002466,88115.0,88102.0,0.4108547]
[1769505153142,0.0002466,88115.0,88102.0,0.39950422]
[1769505156190,0.0002466,88115.0,88102.0,0.4108547]
[1769505156595,0.0002466,88115.0,88102.0,0.39950422]
[1769505157165,0.0002466,88115.0,88102.0,0.4108547]
[1769505158671,0.0002466,88115.0,88102.0,0.39950422]
[1769505159105,0.0002466,88115.0,88102.0,0.4108547]
[1769505159355,0.0002466,88115.0,88102.0,0.39950422]
[1769505159558,0.09049843,88115.0,88102.0,0.39950422]
[1769505162738,0.09049843,88115.0,88099.0,0.01135086]
[1769505163162,0.09049843,88115.0,88099.0,0.41085508]
[1769505164110,0.09049843,88115.0,88099.0,0.39950422]
[1769505164314,0.09049843,88115.0,88099.0,0.41085508]
[1769505165746,0.09049843,88115.0,88100.0,0.01135073]
[1769505165950,0.09049843,88115.0,88099.0,0.41085508]
[1769505166181,0.09049843,88115.0,88100.0,0.01135073]
[1769505166976,0.09049843,88115.0,88099.0,0.41085508]
[1769505168468,0.09049843,88115.0,88099.0,0.39950422]
[1769505168695,0.09049843,88115.0,88096.0,0.06209202]
[1769505168916,0.09049843,88115.0,88088.0,0.15975228]
[1769505168917,0.09834932,88106.0,88088.0,0.21422686]
[1769505169100,0.09536072,88105.0,88088.0,0.20287458]
[1769505169322,0.09536072,88105.0,88093.0,0.06269851]
[1769505169323,0.09536072,88104.0,88093.0,0.06269851]
[1769505169540,0.39461547,88101.0,88093.0,0.00014026]
[1769505169761,0.33784952,88103.0,88093.0,0.00014026]
[1769505169762,0.09536072,88099.0,88093.0,0.00014026]
[1769505173356,0.1166,88103.0,88094.0,0.01135151]
[1769505173661,0.1166,88103.0,88093.0,0.00014026]
[1769505173863,0.1166,88103.0,88093.0,0.01149189]
[1769505174320,0.1166,88103.0,88093.0,0.00014026]
[1769505175886,0.08400562,88102.0,88093.0,0.00014026]
[1769505176084,0.08400562,88100.0,88093.0,0.00014026]
[1769505176331,0.08400562,88099.0,88093.0,0.00014026]
[1769505178223,0.08400562,88099.0,88082.0,0.06811795]
[1769505178224,0.08400562,88099.0,88081.0,0.01135318]
[1769505178366,0.37711383,88096.0,88082.0,0.01135305]
[1769505178578,0.08011641,88095.0,88082.0,0.01135305]
[1769505178773,0.37711383,88095.0,88081.0,0.07363273]
[1769505178995,0.07655944,88093.0,88082.0,0.01135305]
[1769505179199,0.07655944,88093.0,88081.0,0.07363273]
[1769505179421,0.07655944,88093.0,88082.0,0.01135305]
[1769505179642,0.07655944,88093.0,88081.0,0.07363273]
[1769505179943,0.07655944,88093.0,88081.0,0.06227955]